[Event "Live Chess"]
[Site "Chess.com"]
[Date "2023.05.21"]
[Round "-"]
[White "chessfiction"]
[Black "Hussamalhaidar"]
[Result "1-0"]
[WhiteElo "2351"]
[BlackElo "1110"]
[TimeControl "300"]
[EndTime "19:13:49 PDT"]
[Termination "chessfiction won on time"]

1. e4 {[%clk 0:04:58]} 1... Nc6 {[%clk 0:04:54.8]} 2. d4 {[%clk 0:04:57.9]} 2...
e5 {[%clk 0:04:51.9]} 3. d5 {[%clk 0:04:57.8]} 3... Nce7 {[%clk 0:04:50.7]} 4.
Ne2 {[%clk 0:04:56.9]} 4... Ng6 {[%clk 0:04:48.9]} 5. h4 {[%clk 0:04:53.4]} 5...
Bc5 {[%clk 0:04:42.1]} 6. h5 {[%clk 0:04:51.2]} 6... Nf4 {[%clk 0:04:35.8]} 7.
Nxf4 {[%clk 0:04:48.5]} 7... exf4 {[%clk 0:04:31.9]} 8. Bxf4 {[%clk 0:04:46.2]}
8... d6 {[%clk 0:04:25.6]} 9. Nc3 {[%clk 0:04:44.5]} 9... f5 {[%clk 0:04:22.3]}
10. Bd3 {[%clk 0:04:41.8]} 10... Nf6 {[%clk 0:04:18]} 11. h6 {[%clk 0:04:35.9]}
11... g6 {[%clk 0:04:05.9]} 12. exf5 {[%clk 0:04:30.1]} 12... Bxf5 {[%clk
0:03:59.8]} 13. Bxf5 {[%clk 0:04:29]} 13... gxf5 {[%clk 0:03:57.5]} 14. Qe2+
{[%clk 0:04:28]} 14... Qe7 {[%clk 0:03:53.8]} 15. Qxe7+ {[%clk 0:04:26.3]} 15...
Kxe7 {[%clk 0:03:51.2]} 16. Bg5 {[%clk 0:04:26.2]} 16... Rhg8 {[%clk 0:03:48.7]}
17. f4 {[%clk 0:04:23.6]} 17... Rae8 {[%clk 0:03:42.2]} 18. O-O-O {[%clk
0:04:21.1]} 18... Kf7 {[%clk 0:03:29.4]} 19. Rde1 {[%clk 0:04:18.9]} 19... Rxg5
{[%clk 0:03:17.7]} 20. fxg5 {[%clk 0:04:14.9]} 20... Ng4 {[%clk 0:03:12.6]} 21.
Rxe8 {[%clk 0:04:09.7]} 21... Kxe8 {[%clk 0:03:09]} 22. g6 {[%clk 0:04:09.2]}
22... Bd4 {[%clk 0:02:52.1]} 23. g7 {[%clk 0:04:01.1]} 23... Kf7 {[%clk
0:02:47.3]} 24. Rf1 {[%clk 0:03:50.6]} 24... Nxh6 {[%clk 0:02:33.2]} 25. Nb5
{[%clk 0:03:41.3]} 25... Be3+ {[%clk 0:02:27.7]} 26. Kd1 {[%clk 0:03:40.7]}
26... Kxg7 {[%clk 0:02:12.3]} 27. Nxc7 {[%clk 0:03:39.5]} 27... Bb6 {[%clk
0:02:03.9]} 28. Ne8+ {[%clk 0:03:38.1]} 28... Kg6 {[%clk 0:01:55.8]} 29. Nxd6
{[%clk 0:03:38]} 29... Ng4 {[%clk 0:01:50]} 30. Nxf5 {[%clk 0:03:34.8]} 30... h5
{[%clk 0:01:37.9]} 31. d6 {[%clk 0:03:33.5]} 31... Bd8 {[%clk 0:01:25.9]} 32.
Ke2 {[%clk 0:03:30.2]} 32... Ne5 {[%clk 0:01:18.1]} 33. Ne7+ {[%clk 0:03:27.1]}
33... Kg7 {[%clk 0:01:08]} 34. Rf5 {[%clk 0:03:20.5]} 34... Nf7 {[%clk
0:00:59.5]} 35. Rxh5 {[%clk 0:03:18.6]} 35... Nxd6 {[%clk 0:00:51.5]} 36. Nf5+
{[%clk 0:03:16.8]} 36... Nxf5 {[%clk 0:00:49]} 37. Rxf5 {[%clk 0:03:16.7]} 37...
Bf6 {[%clk 0:00:40.5]} 38. Rd5 {[%clk 0:03:16.6]} 38... b6 {[%clk 0:00:19.7]}
39. Rd7+ {[%clk 0:03:16.5]} 39... Kg6 {[%clk 0:00:18.2]} 40. Rxa7 {[%clk
0:03:16.4]} 40... Bxb2 {[%clk 0:00:17.1]} 41. Rb7 {[%clk 0:03:16.3]} 41... Be5
{[%clk 0:00:12.6]} 42. c3 {[%clk 0:03:16.2]} 42... Bxc3 {[%clk 0:00:09.3]} 43.
Rxb6+ {[%clk 0:03:16.1]} 43... Kf5 {[%clk 0:00:05.8]} 44. Rb5+ {[%clk 0:03:16]}
44... Kg6 {[%clk 0:00:03.4]} 45. Rb3 {[%clk 0:03:15.9]} 45... Be5 {[%clk
0:00:01.7]} 46. Rb6+ {[%clk 0:03:15.8]} 1-0

[Event "Live Chess"]
[Site "Chess.com"]
[Date "2023.05.21"]
[Round "-"]
[White "ViktorTheCoolBoy"]
[Black "Conradical12"]
[Result "1-0"]
[WhiteElo "2509"]
[BlackElo "1650"]
[TimeControl "300"]
[EndTime "19:14:51 PDT"]
[Termination "ViktorTheCoolBoy won by resignation"]

1. d4 {[%clk 0:04:57.1]} 1... d5 {[%clk 0:04:58.2]} 2. c4 {[%clk 0:04:56.2]}
2... c6 {[%clk 0:04:54.3]} 3. Nc3 {[%clk 0:04:55.3]} 3... Nf6 {[%clk 0:04:53.3]}
4. Nf3 {[%clk 0:04:54]} 4... Bf5 {[%clk 0:04:53.2]} 5. e3 {[%clk 0:04:52.2]}
5... e6 {[%clk 0:04:52.9]} 6. Bd3 {[%clk 0:04:50.8]} 6... Bd6 {[%clk 0:04:52.4]}
7. Bxf5 {[%clk 0:04:48.7]} 7... exf5 {[%clk 0:04:51.7]} 8. cxd5 {[%clk
0:04:47.9]} 8... cxd5 {[%clk 0:04:50.6]} 9. Qb3 {[%clk 0:04:47]} 9... O-O {[%clk
0:04:40.1]} 10. Bd2 {[%clk 0:04:43]} 10... Nc6 {[%clk 0:04:37.6]} 11. Nxd5
{[%clk 0:04:40.1]} 11... Rc8 {[%clk 0:04:32.6]} 12. Nxf6+ {[%clk 0:04:32.1]}
12... Qxf6 {[%clk 0:04:30.5]} 13. O-O {[%clk 0:04:31.1]} 13... g5 {[%clk
0:04:27.3]} 14. Bc3 {[%clk 0:04:18.7]} 14... g4 {[%clk 0:04:22.7]} 15. d5 {[%clk
0:04:17]} 15... Ne5 {[%clk 0:04:20.8]} 16. Nxe5 {[%clk 0:04:15.9]} 16... Bxe5
{[%clk 0:04:19.3]} 17. Bxe5 {[%clk 0:04:15.4]} 17... Qxe5 {[%clk 0:04:18.2]} 18.
Rac1 {[%clk 0:04:13.9]} 18... h5 {[%clk 0:04:13.3]} 19. Rxc8 {[%clk 0:04:08.6]}
19... Rxc8 {[%clk 0:04:10.5]} 20. Qxb7 {[%clk 0:04:07.7]} 20... Rf8 {[%clk
0:04:08.7]} 21. Rd1 {[%clk 0:04:04.8]} 21... h4 {[%clk 0:04:03.1]} 22. d6 {[%clk
0:04:01.6]} 22... h3 {[%clk 0:03:58.4]} 23. d7 {[%clk 0:04:00.1]} 23... Qe7
{[%clk 0:03:54.3]} 24. Qc7 {[%clk 0:03:56.8]} 24... hxg2 {[%clk 0:03:45.7]} 25.
d8=Q {[%clk 0:03:54.9]} 1-0

[Event "Live Chess"]
[Site "Chess.com"]
[Date "2023.05.21"]
[Round "-"]
[White "whatnot126"]
[Black "Tushinskiy"]
[Result "0-1"]
[WhiteElo "2062"]
[BlackElo "2186"]
[TimeControl "300"]
[EndTime "19:16:06 PDT"]
[Termination "Tushinskiy won by checkmate"]

1. e4 {[%clk 0:04:58.2]} 1... e5 {[%clk 0:04:58.9]} 2. Nf3 {[%clk 0:04:57]} 2...
d6 {[%clk 0:04:58.8]} 3. d4 {[%clk 0:04:56.2]} 3... Bg4 {[%clk 0:04:55.9]} 4.
Bc4 {[%clk 0:04:55.4]} 4... Nd7 {[%clk 0:04:54.3]} 5. O-O {[%clk 0:04:53.6]}
5... Ngf6 {[%clk 0:04:53]} 6. h3 {[%clk 0:04:50]} 6... Bh5 {[%clk 0:04:50.9]} 7.
Nc3 {[%clk 0:04:44.9]} 7... Be7 {[%clk 0:04:48.5]} 8. Be3 {[%clk 0:04:32.1]}
8... c6 {[%clk 0:04:47.1]} 9. g4 {[%clk 0:04:26.1]} 9... Bg6 {[%clk 0:04:45.6]}
10. Qe2 {[%clk 0:03:45.2]} 10... Qc7 {[%clk 0:04:36.5]} 11. Nh4 {[%clk 0:03:40]}
11... b5 {[%clk 0:04:29.4]} 12. Nxg6 {[%clk 0:03:36.4]} 12... hxg6 {[%clk
0:04:29.3]} 13. Bb3 {[%clk 0:03:29]} 13... Rxh3 {[%clk 0:04:24.1]} 14. f4 {[%clk
0:03:27.4]} 14... exd4 {[%clk 0:04:03.1]} 15. Bxd4 {[%clk 0:03:23.8]} 15... a6
{[%clk 0:04:02]} 16. e5 {[%clk 0:03:11.7]} 16... dxe5 {[%clk 0:04:00.3]} 17.
fxe5 {[%clk 0:03:10]} 17... Rg3+ {[%clk 0:03:58.9]} 18. Kh1 {[%clk 0:03:08.7]}
18... O-O-O {[%clk 0:03:55.5]} 19. exf6 {[%clk 0:03:01.9]} 19... Rh8+ {[%clk
0:03:53.4]} 20. Qh2 {[%clk 0:02:58.8]} 20... Rgh3 {[%clk 0:03:47.2]} 21. Qxh3
{[%clk 0:02:54.1]} 21... Rxh3+ {[%clk 0:03:45.7]} 22. Kg2 {[%clk 0:02:53.8]}
22... Qg3# {[%clk 0:03:45]} 0-1

[Event "Live Chess"]
[Site "Chess.com"]
[Date "2023.05.21"]
[Round "-"]
[White "chessfiction"]
[Black "Biranidun"]
[Result "1/2-1/2"]
[WhiteElo "2355"]
[BlackElo "2541"]
[TimeControl "300"]
[EndTime "19:16:23 PDT"]
[Termination "Game drawn by agreement"]

1. e3 {[%clk 0:04:58.8]} 1... e5 {[%clk 0:04:50.6]} 2. d4 {[%clk 0:04:58.7]}
2... exd4 {[%clk 0:04:48.9]} 3. exd4 {[%clk 0:04:58.6]} 3... d5 {[%clk
0:04:48.5]} 4. Nf3 {[%clk 0:04:57.8]} 4... Bd6 {[%clk 0:04:47.9]} 5. Be2 {[%clk
0:04:57.7]} 5... Nc6 {[%clk 0:04:47.2]} 6. O-O {[%clk 0:04:57.6]} 6... Nge7
{[%clk 0:04:46.3]} 7. c4 {[%clk 0:04:57]} 7... dxc4 {[%clk 0:04:45.3]} 8. Nbd2
{[%clk 0:04:55.6]} 8... Bg4 {[%clk 0:04:31.5]} 9. Nxc4 {[%clk 0:04:54.6]} 9...
O-O {[%clk 0:04:30.2]} 10. Bg5 {[%clk 0:04:52.4]} 10... Bxf3 {[%clk 0:04:23.9]}
11. Bxf3 {[%clk 0:04:47.4]} 11... Nxd4 {[%clk 0:04:23]} 12. Nxd6 {[%clk
0:04:44.1]} 12... Qxd6 {[%clk 0:04:21.5]} 13. Bxe7 {[%clk 0:04:41.2]} 13...
Nxf3+ {[%clk 0:04:20.8]} 14. Qxf3 {[%clk 0:04:39.6]} 14... Qxe7 {[%clk
0:04:20.7]} 15. Qxb7 {[%clk 0:04:30.8]} 15... Rab8 {[%clk 0:04:13.1]} 16. Qxa7
{[%clk 0:04:29.4]} 16... Rxb2 {[%clk 0:04:12.1]} 17. Rac1 {[%clk 0:04:26.5]}
17... Qe6 {[%clk 0:04:06.2]} 18. Rxc7 {[%clk 0:04:22.4]} 18... Rxa2 {[%clk
0:04:05.3]} 19. Qc5 {[%clk 0:04:19.9]} 19... g6 {[%clk 0:04:02.4]} 20. g3 {[%clk
0:04:10.8]} 20... h5 {[%clk 0:04:00.8]} 21. h4 {[%clk 0:04:08.8]} 21... Re8
{[%clk 0:03:59.4]} 22. Qc4 {[%clk 0:03:59.5]} 22... Qxc4 {[%clk 0:03:55.4]} 23.
Rxc4 {[%clk 0:03:59.4]} 23... Kg7 {[%clk 0:03:51.6]} 24. Rf4 {[%clk 0:03:58]}
24... Re7 {[%clk 0:03:49.1]} 25. Kg2 {[%clk 0:03:55.1]} 25... Ra6 {[%clk
0:03:48.5]} 26. Kg1 {[%clk 0:03:54.1]} 26... Rf6 {[%clk 0:03:47.9]} 1/2-1/2

[Event "Live Chess"]
[Site "Chess.com"]
[Date "2023.05.21"]
[Round "-"]
[White "Fazer180"]
[Black "ChessClubLive"]
[Result "0-1"]
[WhiteElo "1744"]
[BlackElo "1763"]
[TimeControl "300"]
[EndTime "19:16:45 PDT"]
[Termination "ChessClubLive won by resignation"]

1. e4 {[%clk 0:04:57.5]} 1... c5 {[%clk 0:04:58.6]} 2. Nf3 {[%clk 0:04:56.3]}
2... e6 {[%clk 0:04:57.4]} 3. d4 {[%clk 0:04:56.2]} 3... cxd4 {[%clk 0:04:56.7]}
4. Nxd4 {[%clk 0:04:56.1]} 4... Nf6 {[%clk 0:04:55.9]} 5. Nc3 {[%clk 0:04:54.3]}
5... g6 {[%clk 0:04:54.7]} 6. Be3 {[%clk 0:04:50.8]} 6... Bg7 {[%clk 0:04:53.1]}
7. Ndb5 {[%clk 0:04:45.3]} 7... O-O {[%clk 0:04:42.2]} 8. Nd6 {[%clk 0:04:40.1]}
8... Nc6 {[%clk 0:04:12.5]} 9. f4 {[%clk 0:04:19.2]} 9... a6 {[%clk 0:04:10.8]}
10. Be2 {[%clk 0:04:16.7]} 10... Qc7 {[%clk 0:04:00]} 11. O-O {[%clk 0:04:04]}
11... Ne8 {[%clk 0:03:58.6]} 12. Nxe8 {[%clk 0:03:52.7]} 12... Rxe8 {[%clk
0:03:55.2]} 13. Qd2 {[%clk 0:03:51.6]} 13... Ne7 {[%clk 0:03:44.2]} 14. Rad1
{[%clk 0:03:44.5]} 14... b5 {[%clk 0:03:40.4]} 15. Bd4 {[%clk 0:03:38.7]} 15...
f6 {[%clk 0:03:29.4]} 16. a3 {[%clk 0:03:24]} 16... Bb7 {[%clk 0:03:27.2]} 17.
Bf3 {[%clk 0:03:21.1]} 17... Rac8 {[%clk 0:03:02.9]} 18. Be3 {[%clk 0:03:14.3]}
18... d5 {[%clk 0:02:53.9]} 19. exd5 {[%clk 0:03:08]} 19... exd5 {[%clk
0:02:51.4]} 20. Nxd5 {[%clk 0:03:00.5]} 20... Nxd5 {[%clk 0:02:44.4]} 21. Bxd5+
{[%clk 0:02:59.1]} 21... Bxd5 {[%clk 0:02:38.6]} 22. Qxd5+ {[%clk 0:02:59]}
22... Kh8 {[%clk 0:02:34.9]} 23. Bd4 {[%clk 0:02:21.6]} 23... Qxc2 {[%clk
0:02:29.4]} 24. Bc3 {[%clk 0:02:20.5]} 24... Re2 {[%clk 0:02:07]} 25. Qf3 {[%clk
0:02:18.9]} 25... Rce8 {[%clk 0:01:56.3]} 26. Qc6 {[%clk 0:01:56.4]} 26... h5
{[%clk 0:01:41.1]} 27. Bxf6 {[%clk 0:01:50.5]} 27... Qxc6 {[%clk 0:01:36.6]} 28.
Bxg7+ {[%clk 0:01:46.1]} 28... Kxg7 {[%clk 0:01:35.2]} 29. Rf3 {[%clk 0:01:40]}
29... Re1+ {[%clk 0:01:28.5]} 30. Rxe1 {[%clk 0:01:35.5]} 30... Rxe1+ {[%clk
0:01:26.6]} 31. Kf2 {[%clk 0:01:35.4]} 31... Rb1 {[%clk 0:01:21.8]} 32. b4
{[%clk 0:01:33.1]} 32... Rb2+ {[%clk 0:01:16.7]} 33. Kg3 {[%clk 0:01:28.8]}
33... Qc2 {[%clk 0:01:15]} 34. Kh4 {[%clk 0:01:18.7]} 34... Qxg2 {[%clk
0:01:10.3]} 35. Rh3 {[%clk 0:01:17.8]} 0-1

[Event "Live Chess"]
[Site "Chess.com"]
[Date "2023.05.21"]
[Round "-"]
[White "garyjc"]
[Black "Long1968"]
[Result "0-1"]
[WhiteElo "1046"]
[BlackElo "1042"]
[TimeControl "300"]
[EndTime "19:16:58 PDT"]
[Termination "Long1968 won by resignation"]

1. e4 {[%clk 0:04:57.7]} 1... e6 {[%clk 0:04:56.6]} 2. d4 {[%clk 0:04:56]} 2...
d5 {[%clk 0:04:54]} 3. exd5 {[%clk 0:04:47.5]} 3... exd5 {[%clk 0:04:50.8]} 4.
Nf3 {[%clk 0:04:40]} 4... Bg4 {[%clk 0:04:46.5]} 5. Qe2+ {[%clk 0:04:25.2]} 5...
Be7 {[%clk 0:04:41.4]} 6. h3 {[%clk 0:04:21.2]} 6... Bh5 {[%clk 0:04:36.2]} 7.
g4 {[%clk 0:04:15.6]} 7... Bg6 {[%clk 0:04:32.1]} 8. h4 {[%clk 0:04:11.2]} 8...
h5 {[%clk 0:04:24.1]} 9. Ne5 {[%clk 0:04:05.2]} 9... Nf6 {[%clk 0:04:10.3]} 10.
Nxg6 {[%clk 0:04:01.2]} 10... fxg6 {[%clk 0:04:06.4]} 11. Bg5 {[%clk 0:03:53.5]}
11... Nxg4 {[%clk 0:03:55.3]} 12. Nc3 {[%clk 0:03:45.2]} 12... Nc6 {[%clk
0:03:43.2]} 13. Bh3 {[%clk 0:03:36.9]} 13... O-O {[%clk 0:03:23.7]} 14. Bxe7
{[%clk 0:03:27.4]} 14... Qxe7 {[%clk 0:03:15.9]} 15. Bxg4 {[%clk 0:03:00.9]}
15... hxg4 {[%clk 0:03:08.9]} 16. O-O-O {[%clk 0:02:56.6]} 16... Qxe2 {[%clk
0:02:55.1]} 17. Nxe2 {[%clk 0:02:54.6]} 17... Rxf2 {[%clk 0:02:49.6]} 18. Nc3
{[%clk 0:02:44]} 18... Rd8 {[%clk 0:02:34.8]} 19. Nb5 {[%clk 0:02:31.9]} 19...
Nb4 {[%clk 0:02:23.9]} 20. Rd2 {[%clk 0:01:58.2]} 20... Rdf8 {[%clk 0:02:09.1]}
21. Rxf2 {[%clk 0:01:52]} 21... Rxf2 {[%clk 0:02:05.4]} 22. Nxc7 {[%clk
0:01:49.9]} 22... Rxc2+ {[%clk 0:02:01.9]} 23. Kb1 {[%clk 0:01:48.1]} 23... Rxc7
{[%clk 0:02:00.1]} 0-1

[Event "Live Chess"]
[Site "Chess.com"]
[Date "2023.05.21"]
[Round "-"]
[White "raminguy"]
[Black "flyingpuffins"]
[Result "1-0"]
[WhiteElo "1969"]
[BlackElo "1957"]
[TimeControl "300"]
[EndTime "19:17:13 PDT"]
[Termination "raminguy won by checkmate"]

1. d4 {[%clk 0:04:59.1]} 1... d5 {[%clk 0:04:58.6]} 2. Nc3 {[%clk 0:04:58.4]}
2... Nf6 {[%clk 0:04:57.1]} 3. Bf4 {[%clk 0:04:57.6]} 3... a6 {[%clk 0:04:55.6]}
4. e3 {[%clk 0:04:56.4]} 4... c5 {[%clk 0:04:54.5]} 5. dxc5 {[%clk 0:04:53.3]}
5... Nc6 {[%clk 0:04:46.4]} 6. a3 {[%clk 0:04:51.7]} 6... e5 {[%clk 0:04:44.5]}
7. Bg5 {[%clk 0:04:50.8]} 7... Be6 {[%clk 0:04:41.8]} 8. b4 {[%clk 0:04:48.7]}
8... a5 {[%clk 0:04:40.2]} 9. Bb5 {[%clk 0:04:34.1]} 9... Be7 {[%clk 0:04:30.1]}
10. Nge2 {[%clk 0:04:24]} 10... O-O {[%clk 0:04:26.8]} 11. Bxc6 {[%clk
0:04:19.3]} 11... bxc6 {[%clk 0:04:26.7]} 12. O-O {[%clk 0:04:11.4]} 12... h6
{[%clk 0:04:23.5]} 13. Bh4 {[%clk 0:04:06.8]} 13... g5 {[%clk 0:04:22.4]} 14.
Bg3 {[%clk 0:04:05.6]} 14... Nd7 {[%clk 0:04:16.7]} 15. Qd2 {[%clk 0:03:50.8]}
15... f5 {[%clk 0:04:15.8]} 16. f4 {[%clk 0:03:45.8]} 16... e4 {[%clk
0:04:06.2]} 17. Nd4 {[%clk 0:03:40.1]} 17... Rf6 {[%clk 0:03:59.8]} 18. h4
{[%clk 0:03:32.1]} 18... gxf4 {[%clk 0:03:53.8]} 19. Bxf4 {[%clk 0:03:29.6]}
19... Rc8 {[%clk 0:03:50.6]} 20. Qe2 {[%clk 0:03:14.1]} 20... axb4 {[%clk
0:03:49.1]} 21. axb4 {[%clk 0:03:12.3]} 21... Bf7 {[%clk 0:03:48.4]} 22. Ra6
{[%clk 0:02:59.6]} 22... Nb8 {[%clk 0:03:43.8]} 23. Bxb8 {[%clk 0:02:54.4]}
23... Rxb8 {[%clk 0:03:42.7]} 24. Nxc6 {[%clk 0:02:46.4]} 24... Qf8 {[%clk
0:03:41.6]} 25. Nxb8 {[%clk 0:02:41.8]} 25... Qxb8 {[%clk 0:03:41.5]} 26. Rxf6
{[%clk 0:02:40.5]} 26... Bxf6 {[%clk 0:03:26.7]} 27. Nb5 {[%clk 0:02:31]} 27...
Bxh4 {[%clk 0:03:22.8]} 28. Rxf5 {[%clk 0:02:22.7]} 28... Be8 {[%clk 0:03:21.8]}
29. Nd6 {[%clk 0:02:18.8]} 29... Bd7 {[%clk 0:03:19.4]} 30. Qg4+ {[%clk
0:02:05.7]} 30... Bg5 {[%clk 0:03:15.3]} 31. Rxg5+ {[%clk 0:02:03.5]} 31... hxg5
{[%clk 0:03:13.9]} 32. Qxd7 {[%clk 0:01:59.9]} 32... Qxb4 {[%clk 0:03:06.5]} 33.
Qf7+ {[%clk 0:01:58.7]} 33... Kh8 {[%clk 0:03:05.4]} 34. Nf5 {[%clk 0:01:54.3]}
34... Qe1+ {[%clk 0:03:02.2]} 35. Kh2 {[%clk 0:01:53.1]} 35... Qc3 {[%clk
0:03:00]} 36. c6 {[%clk 0:01:46.3]} 36... Qe5+ {[%clk 0:02:58.1]} 37. g3 {[%clk
0:01:43.3]} 37... Qc3 {[%clk 0:02:54.9]} 38. Qg7+ {[%clk 0:01:40.5]} 38... Qxg7
{[%clk 0:02:48.2]} 39. Nxg7 {[%clk 0:01:40.4]} 39... Kxg7 {[%clk 0:02:47.9]} 40.
c7 {[%clk 0:01:38.8]} 40... g4 {[%clk 0:02:46.9]} 41. c8=Q {[%clk 0:01:37.8]}
41... Kf6 {[%clk 0:02:46.2]} 42. Qxg4 {[%clk 0:01:37.3]} 42... Ke5 {[%clk
0:02:45.3]} 43. Qf4+ {[%clk 0:01:36.9]} 43... Ke6 {[%clk 0:02:44]} 44. c3 {[%clk
0:01:34.8]} 44... d4 {[%clk 0:02:43.9]} 45. cxd4 {[%clk 0:01:33.9]} 45... Kd5
{[%clk 0:02:42.7]} 46. Qe5+ {[%clk 0:01:33.3]} 46... Kc4 {[%clk 0:02:42.6]} 47.
Qxe4 {[%clk 0:01:32.7]} 47... Kb5 {[%clk 0:02:41.1]} 48. g4 {[%clk 0:01:32.6]}
48... Kb6 {[%clk 0:02:40.4]} 49. g5 {[%clk 0:01:32.5]} 49... Kc7 {[%clk
0:02:39.7]} 50. g6 {[%clk 0:01:32.4]} 50... Kd8 {[%clk 0:02:38.1]} 51. g7 {[%clk
0:01:32.3]} 51... Kd7 {[%clk 0:02:37]} 52. g8=R {[%clk 0:01:32.2]} 52... Kd6
{[%clk 0:02:36.2]} 53. Rg6+ {[%clk 0:01:30.4]} 53... Kd7 {[%clk 0:02:35.6]} 54.
Qe6+ {[%clk 0:01:28.5]} 54... Kd8 {[%clk 0:02:34.8]} 55. Rg8+ {[%clk 0:01:27.3]}
55... Kc7 {[%clk 0:02:34]} 56. Rc8+ {[%clk 0:01:26.7]} 56... Kb7 {[%clk
0:02:33]} 57. Qc6+ {[%clk 0:01:26.2]} 57... Ka7 {[%clk 0:02:32.3]} 58. Ra8#
{[%clk 0:01:25.7]} 1-0

[Event "Live Chess"]
[Site "Chess.com"]
[Date "2023.05.21"]
[Round "-"]
[White "ramses-IIG"]
[Black "Hussamalhaidar"]
[Result "1-0"]
[WhiteElo "862"]
[BlackElo "1094"]
[TimeControl "300"]
[EndTime "19:17:18 PDT"]
[Termination "ramses-IIG won by resignation"]

1. e4 {[%clk 0:04:57]} 1... Nc6 {[%clk 0:04:56.9]} 2. Nf3 {[%clk 0:04:56.9]}
2... e6 {[%clk 0:04:55.4]} 3. Bc4 {[%clk 0:04:55.6]} 3... a6 {[%clk 0:04:51.8]}
4. e5 {[%clk 0:04:53.8]} 4... d6 {[%clk 0:04:46.8]} 5. d4 {[%clk 0:04:49.9]}
5... dxe5 {[%clk 0:04:41]} 6. dxe5 {[%clk 0:04:49.8]} 6... Bc5 {[%clk
0:04:38.5]} 7. O-O {[%clk 0:04:47.2]} 7... b5 {[%clk 0:04:21.4]} 8. Bb3 {[%clk
0:04:44.4]} 8... Bb7 {[%clk 0:04:18.9]} 9. Bg5 {[%clk 0:04:33.7]} 9... f6 {[%clk
0:04:00.7]} 10. exf6 {[%clk 0:04:33.6]} 10... gxf6 {[%clk 0:03:47.1]} 11. Bh4
{[%clk 0:04:29.8]} 11... Nh6 {[%clk 0:03:42.1]} 12. Nfd2 {[%clk 0:04:22.6]}
12... Nd4 {[%clk 0:03:34.1]} 13. Qh5+ {[%clk 0:04:11.5]} 13... Nf7 {[%clk
0:03:14.4]} 14. Qxc5 {[%clk 0:03:59]} 14... Ne2+ {[%clk 0:03:02.9]} 15. Kh1
{[%clk 0:03:53.1]} 15... Qxd2 {[%clk 0:02:57.6]} 16. Nxd2 {[%clk 0:03:50.4]} 1-0

[Event "Live Chess"]
[Site "Chess.com"]
[Date "2023.05.21"]
[Round "-"]
[White "grillage"]
[Black "blowerd"]
[Result "1-0"]
[WhiteElo "1808"]
[BlackElo "1356"]
[TimeControl "300"]
[EndTime "19:17:49 PDT"]
[Termination "grillage won by checkmate"]

1. d4 {[%clk 0:04:59.3]} 1... d5 {[%clk 0:04:58.5]} 2. Nf3 {[%clk 0:04:56.6]}
2... Nc6 {[%clk 0:04:56.9]} 3. Bf4 {[%clk 0:04:53.4]} 3... Bf5 {[%clk
0:04:54.2]} 4. a3 {[%clk 0:04:47.7]} 4... Nf6 {[%clk 0:04:52.8]} 5. Nc3 {[%clk
0:04:44.4]} 5... e6 {[%clk 0:04:51.5]} 6. Nb5 {[%clk 0:04:42.2]} 6... Bd6 {[%clk
0:04:44.7]} 7. Nxd6+ {[%clk 0:04:40.4]} 7... cxd6 {[%clk 0:04:42.7]} 8. e3
{[%clk 0:04:38.7]} 8... Bg4 {[%clk 0:04:36.2]} 9. Be2 {[%clk 0:04:37.5]} 9... e5
{[%clk 0:04:27.3]} 10. Bg3 {[%clk 0:04:29.2]} 10... e4 {[%clk 0:04:24.2]} 11.
Nd2 {[%clk 0:04:27.8]} 11... Bxe2 {[%clk 0:04:20.9]} 12. Qxe2 {[%clk 0:04:27.4]}
12... O-O {[%clk 0:04:19.5]} 13. O-O {[%clk 0:04:25.7]} 13... Re8 {[%clk
0:04:18.1]} 14. c4 {[%clk 0:04:12.7]} 14... dxc4 {[%clk 0:04:10.1]} 15. Nxc4
{[%clk 0:04:11.3]} 15... d5 {[%clk 0:04:08.9]} 16. Nd6 {[%clk 0:04:03.5]} 16...
Re6 {[%clk 0:04:04.9]} 17. Nxb7 {[%clk 0:04:00.9]} 17... Qe8 {[%clk 0:03:36.4]}
18. Rac1 {[%clk 0:03:50.3]} 18... Nh5 {[%clk 0:03:31.2]} 19. Nc5 {[%clk
0:03:46.5]} 19... Rg6 {[%clk 0:03:28.3]} 20. Qxh5 {[%clk 0:03:37.5]} 20... Rb8
{[%clk 0:03:06.6]} 21. Bxb8 {[%clk 0:03:35.2]} 21... Ne7 {[%clk 0:03:03.7]} 22.
Bg3 {[%clk 0:03:24.1]} 22... Rh6 {[%clk 0:03:01.5]} 23. Qe5 {[%clk 0:03:19.5]}
23... f6 {[%clk 0:02:49.7]} 24. Qe6+ {[%clk 0:03:18]} 24... Kh8 {[%clk
0:02:47.6]} 25. Na6 {[%clk 0:03:03.6]} 25... f5 {[%clk 0:02:41.7]} 26. Qe5
{[%clk 0:02:59.4]} 26... Rxa6 {[%clk 0:02:38.6]} 27. Rc7 {[%clk 0:02:52.6]}
27... h6 {[%clk 0:02:14]} 28. Qxe7 {[%clk 0:02:48]} 28... Qg6 {[%clk 0:02:06.6]}
29. Be5 {[%clk 0:02:39.7]} 29... Re6 {[%clk 0:01:58.8]} 30. Qxg7+ {[%clk
0:02:37]} 30... Qxg7 {[%clk 0:01:56.2]} 31. Bxg7+ {[%clk 0:02:35.8]} 31... Kg8
{[%clk 0:01:53.3]} 32. Be5 {[%clk 0:02:34.2]} 32... Rb6 {[%clk 0:01:48.7]} 33.
b4 {[%clk 0:02:31.9]} 33... Ra6 {[%clk 0:01:47.5]} 34. h4 {[%clk 0:02:23.9]}
34... Rxa3 {[%clk 0:01:45]} 35. Rd7 {[%clk 0:02:13.4]} 35... a5 {[%clk
0:01:42.1]} 36. bxa5 {[%clk 0:02:11.7]} 36... Rxa5 {[%clk 0:01:40.1]} 37. g3
{[%clk 0:02:07.6]} 37... Kf8 {[%clk 0:01:37.4]} 38. Kg2 {[%clk 0:02:04.7]} 38...
Ke8 {[%clk 0:01:36.3]} 39. Rh7 {[%clk 0:02:01.6]} 39... h5 {[%clk 0:01:34.1]}
40. Rb1 {[%clk 0:01:59.5]} 40... Ra8 {[%clk 0:01:18.9]} 41. Rh8+ {[%clk
0:01:57]} 41... Kd7 {[%clk 0:01:18.1]} 42. Rxa8 {[%clk 0:01:55.8]} 42... f4
{[%clk 0:01:15.8]} 43. Bxf4 {[%clk 0:01:49.8]} 43... Ke6 {[%clk 0:01:13.4]} 44.
Rb6+ {[%clk 0:01:46]} 44... Kf5 {[%clk 0:01:11.4]} 45. Rf8+ {[%clk 0:01:42.4]}
45... Kg4 {[%clk 0:01:10.2]} 46. Rg8+ {[%clk 0:01:39.5]} 46... Kf5 {[%clk
0:01:08.8]} 47. Rg5# {[%clk 0:01:36.1]} 1-0